[Event "Titled Tuesday Blitz February 07 Early 2023"]
[White "Fiorito, Joaquin"]
[Black "Vakhlamov, Igor L."]
[WhiteFideId "180173"]
[BlackFideId "24126748"]
[WhiteElo "2405"]
[BlackElo "2413"]
[Result "1/2-1/2"]
[Round "08"]
[TimeControl "180+2"]
[Date "2023.02.07"]
[WhiteClock "0:00:03"]
[BlackClock "0:00:28"]

1. d4 {[%clk 0:03:00]}  d5 {[%clk 0:02:59]} 2. Nc3 {[%clk 0:03:01]}  Nf6 {[%clk 0:02:58]} 3. Bf4 {[%clk 0:03:02]}  a6 {[%clk 0:02:58]} 4. e3 {[%clk 0:03:02]}  c5 {[%clk 0:02:57]} 5. dxc5 {[%clk 0:03:02]}  e6 {[%clk 0:02:52]} 6. Nf3 {[%clk 0:03:01]}  Bxc5 {[%clk 0:02:52]} 7. Bd3 {[%clk 0:03:02]}  b5 {[%clk 0:02:44]} 8. O-O {[%clk 0:02:48]}  Bb7 {[%clk 0:02:44]} 9. a3 {[%clk 0:02:47]}  O-O {[%clk 0:02:44]} 10. Qe2 {[%clk 0:02:41]}  Nbd7 {[%clk 0:02:40]} 11. e4 {[%clk 0:02:40]}  dxe4 {[%clk 0:02:22]} 12. Nxe4 {[%clk 0:02:41]}  Nxe4 {[%clk 0:02:21]} 13. Bxe4 {[%clk 0:02:42]}  Bxe4 {[%clk 0:02:21]} 14. Qxe4 {[%clk 0:02:43]}  Nf6 {[%clk 0:02:22]} 15. Qe2 {[%clk 0:02:43]}  Rc8 {[%clk 0:02:19]} 16. c3 {[%clk 0:02:38]}  Nd5 {[%clk 0:02:17]} 17. Be5 {[%clk 0:02:36]}  Qb6 {[%clk 0:02:13]} 18. Rad1 {[%clk 0:02:35]}  Rfd8 {[%clk 0:02:13]} 19. h4 {[%clk 0:02:29]}  h6 {[%clk 0:02:12]} 20. Qe4 {[%clk 0:02:28]}  Bd6 {[%clk 0:02:03]} 21. Bd4 {[%clk 0:02:16]}  Bc5 {[%clk 0:02:03]} 22. g3 {[%clk 0:02:01]}  a5 {[%clk 0:01:59]} 23. Be5 {[%clk 0:01:55]}  Bd6 {[%clk 0:01:58]} 24. Kg2 {[%clk 0:01:51]}  Bxe5 {[%clk 0:01:47]} 25. Nxe5 {[%clk 0:01:50]}  Rc7 {[%clk 0:01:34]} 26. Rd4 {[%clk 0:01:44]}  Rdc8 {[%clk 0:01:33]} 27. Rfd1 {[%clk 0:01:43]}  Qb7 {[%clk 0:01:28]} 28. a4 {[%clk 0:01:33]}  bxa4 {[%clk 0:01:10]} 29. c4 {[%clk 0:01:33]}  f5 {[%clk 0:01:10]} 30. Qf3 {[%clk 0:01:25]}  Nf6 {[%clk 0:01:10]} 31. Ra1 {[%clk 0:00:56]}  Qxf3+ {[%clk 0:01:07]} 32. Kxf3 {[%clk 0:00:55]}  Rc5 {[%clk 0:01:07]} 33. Ng6 {[%clk 0:00:30]}  Rxc4 {[%clk 0:01:05]} 34. Rd6 {[%clk 0:00:21]}  Kf7 {[%clk 0:01:01]} 35. Ne5+ {[%clk 0:00:20]}  Ke7 {[%clk 0:00:59]} 36. Nxc4 {[%clk 0:00:21]}  Rxc4 {[%clk 0:01:00]} 37. Ra6 {[%clk 0:00:20]}  Rb4 {[%clk 0:00:57]} 38. Rxa5 {[%clk 0:00:20]}  Rb3+ {[%clk 0:00:58]} 39. Kg2 {[%clk 0:00:20]}  Rxb2 {[%clk 0:00:56]} 40. R5xa4 {[%clk 0:00:19]}  Ne4 {[%clk 0:00:36]} 41. R4a2 {[%clk 0:00:19]}  Rxa2 {[%clk 0:00:36]} 42. Rxa2 {[%clk 0:00:20]}  g5 {[%clk 0:00:37]} 43. hxg5 {[%clk 0:00:18]}  hxg5 {[%clk 0:00:38]} 44. f3 {[%clk 0:00:18]}  Nf6 {[%clk 0:00:35]} 45. Kf2 {[%clk 0:00:18]}  g4 {[%clk 0:00:35]} 46. Ra7+ {[%clk 0:00:14]}  Kd6 {[%clk 0:00:35]} 47. Ra6+ {[%clk 0:00:14]}  Kd5 {[%clk 0:00:35]} 48. f4 {[%clk 0:00:12]}  Ne4+ {[%clk 0:00:35]} 49. Kg2 {[%clk 0:00:13]}  Nc5 {[%clk 0:00:32]} 50. Ra8 {[%clk 0:00:12]}  Ne4 {[%clk 0:00:32]} 51. Rd8+ {[%clk 0:00:11]}  Kc6 {[%clk 0:00:31]} 52. Rd1 {[%clk 0:00:09]}  Kc5 {[%clk 0:00:31]} 53. Rd3 {[%clk 0:00:09]}  Kc4 {[%clk 0:00:30]} 54. Rd8 {[%clk 0:00:09]}  Kc5 {[%clk 0:00:30]} 55. Re8 {[%clk 0:00:06]}  Kd5 {[%clk 0:00:30]} 56. Rd8+ {[%clk 0:00:06]}  Kc5 {[%clk 0:00:31]} 57. Rc8+ {[%clk 0:00:06]}  Kd5 {[%clk 0:00:30]} 58. Rc2 {[%clk 0:00:06]}  Kd6 {[%clk 0:00:29]} 59. Rc4 {[%clk 0:00:02]}  Kd5 {[%clk 0:00:28]} 60. Rc8 {[%clk 0:00:03]}  Kd6 {[%clk 0:00:28]} 61. Rd8+ {[%clk 0:00:03]}  Kc5 {[%clk 0:00:28]} 1/2-1/2


[Site "https://www.chess.com"]

[Event "Titled Tuesday Blitz February 07 Early 2023"]
[White "Ahmadzada, Ahmad"]
[Black "Megalios, Konstantinos"]
[WhiteFideId "13413007"]
[BlackFideId "4238044"]
[WhiteElo "2488"]
[BlackElo "2372"]
[Result "1/2-1/2"]
[Round "08"]
[TimeControl "180+2"]
[Date "2023.02.07"]
[WhiteClock "0:00:04"]
[BlackClock "0:00:15"]

1. Nf3 {[%clk 0:03:00]}  Nf6 {[%clk 0:02:57]} 2. g3 {[%clk 0:03:00]}  b6 {[%clk 0:02:55]} 3. Bg2 {[%clk 0:03:00]}  Bb7 {[%clk 0:02:56]} 4. O-O {[%clk 0:03:01]}  g6 {[%clk 0:02:55]} 5. Re1 {[%clk 0:03:00]}  Bg7 {[%clk 0:02:55]} 6. d3 {[%clk 0:03:00]}  d5 {[%clk 0:02:54]} 7. Nfd2 {[%clk 0:02:55]}  O-O {[%clk 0:02:54]} 8. e4 {[%clk 0:02:56]}  dxe4 {[%clk 0:02:52]} 9. dxe4 {[%clk 0:02:57]}  Nfd7 {[%clk 0:02:44]} 10. Nc4 {[%clk 0:02:52]}  Nc5 {[%clk 0:02:39]} 11. Nbd2 {[%clk 0:02:33]}  a5 {[%clk 0:02:33]} 12. Qe2 {[%clk 0:01:50]}  Nc6 {[%clk 0:02:33]} 13. c3 {[%clk 0:01:49]}  Qd3 {[%clk 0:02:32]} 14. e5 {[%clk 0:01:40]}  Rad8 {[%clk 0:02:23]} 15. f4 {[%clk 0:01:36]}  f6 {[%clk 0:02:11]} 16. e6 {[%clk 0:01:06]}  f5 {[%clk 0:02:08]} 17. Qxd3 {[%clk 0:00:39]}  Nxd3 {[%clk 0:02:07]} 18. Re2 {[%clk 0:00:39]}  a4 {[%clk 0:01:40]} 19. Rb1 {[%clk 0:00:21]}  Rb8 {[%clk 0:01:04]} 20. Kf1 {[%clk 0:00:13]}  Rfd8 {[%clk 0:01:02]} 21. Kg1 {[%clk 0:00:03]}  b5 {[%clk 0:01:02]} 22. Na3 {[%clk 0:00:03]}  Na5 {[%clk 0:00:59]} 23. Bxb7 {[%clk 0:00:02]}  Rxb7 {[%clk 0:00:59]} 24. Nf3 {[%clk 0:00:03]}  Nxc1 {[%clk 0:00:50]} 25. Rxc1 {[%clk 0:00:03]}  c5 {[%clk 0:00:36]} 26. Nc2 {[%clk 0:00:03]}  Nc4 {[%clk 0:00:35]} 27. Ne3 {[%clk 0:00:03]}  Nxe3 {[%clk 0:00:31]} 28. Rxe3 {[%clk 0:00:04]}  Rb6 {[%clk 0:00:29]} 29. Rc2 {[%clk 0:00:04]}  Rdd6 {[%clk 0:00:25]} 30. Rce2 {[%clk 0:00:04]}  Bf6 {[%clk 0:00:23]} 31. h3 {[%clk 0:00:04]}  h6 {[%clk 0:00:23]} 32. g4 {[%clk 0:00:04]}  Kf8 {[%clk 0:00:23]} 33. g5 {[%clk 0:00:04]}  hxg5 {[%clk 0:00:23]} 34. fxg5 {[%clk 0:00:05]}  Bh8 {[%clk 0:00:20]} 35. Nh4 {[%clk 0:00:05]}  Kg7 {[%clk 0:00:20]} 36. Kg2 {[%clk 0:00:06]}  Kh7 {[%clk 0:00:20]} 37. Nf3 {[%clk 0:00:06]}  Bg7 {[%clk 0:00:19]} 38. h4 {[%clk 0:00:06]}  b4 {[%clk 0:00:19]} 39. cxb4 {[%clk 0:00:05]}  cxb4 {[%clk 0:00:19]} 40. b3 {[%clk 0:00:05]}  axb3 {[%clk 0:00:17]} 41. axb3 {[%clk 0:00:06]}  Ra6 {[%clk 0:00:18]} 42. Kg3 {[%clk 0:00:06]}  Ra3 {[%clk 0:00:17]} 43. Rh2 {[%clk 0:00:05]}  Bc3 {[%clk 0:00:16]} 44. h5 {[%clk 0:00:05]}  gxh5 {[%clk 0:00:16]} 45. Rxh5+ {[%clk 0:00:06]}  Kg6 {[%clk 0:00:17]} 46. Rh6+ {[%clk 0:00:06]}  Kg7 {[%clk 0:00:17]} 47. Nh4 {[%clk 0:00:06]}  Rd5 {[%clk 0:00:16]} 48. Rg6+ {[%clk 0:00:05]}  Kh7 {[%clk 0:00:15]} 49. Rh6+ {[%clk 0:00:06]}  Kg7 {[%clk 0:00:15]} 50. Rf3 {[%clk 0:00:06]}  Be1+ {[%clk 0:00:15]} 51. Kh3 {[%clk 0:00:05]}  Bxh4 {[%clk 0:00:14]} 52. Rxh4 {[%clk 0:00:04]}  Ra1 {[%clk 0:00:14]} 53. Rxb4 {[%clk 0:00:05]}  Rg1 {[%clk 0:00:13]} 54. Rb7 {[%clk 0:00:03]}  Kf8 {[%clk 0:00:13]} 55. Rb8+ {[%clk 0:00:03]}  Kg7 {[%clk 0:00:13]} 56. Re8 {[%clk 0:00:04]}  Rxg5 {[%clk 0:00:13]} 57. Rxe7+ {[%clk 0:00:04]}  Kf6 {[%clk 0:00:13]} 58. Re8 {[%clk 0:00:04]}  Re5 {[%clk 0:00:13]} 59. b4 {[%clk 0:00:02]}  Rxe6 {[%clk 0:00:13]} 60. Rxe6+ {[%clk 0:00:03]}  Kxe6 {[%clk 0:00:14]} 61. Rg3 {[%clk 0:00:03]}  Rxg3+ {[%clk 0:00:13]} 62. Kxg3 {[%clk 0:00:04]}  Kd5 {[%clk 0:00:14]} 63. Kf4 {[%clk 0:00:04]}  Kc4 {[%clk 0:00:14]} 64. Kxf5 {[%clk 0:00:04]}  Kxb4 {[%clk 0:00:15]} 1/2-1/2


[Site "https://www.chess.com"]

[Event "Titled Tuesday Blitz February 07 Early 2023"]
[White "Janaszak, Dawid"]
[Black "Kukhmazov, Arsen"]
[WhiteFideId "1119206"]
[BlackFideId "24108260"]
[WhiteElo "2316"]
[BlackElo "2512"]
[Result "0-1"]
[Round "08"]
[TimeControl "180+2"]
[Date "2023.02.07"]
[WhiteClock "0:00:01"]
[BlackClock "0:00:07"]

1. e4 {[%clk 0:03:00]}  e5 {[%clk 0:02:58]} 2. Nf3 {[%clk 0:03:00]}  Nc6 {[%clk 0:02:59]} 3. d4 {[%clk 0:03:00]}  exd4 {[%clk 0:02:59]} 4. Nxd4 {[%clk 0:03:01]}  Nf6 {[%clk 0:02:57]} 5. Nxc6 {[%clk 0:03:01]}  bxc6 {[%clk 0:02:58]} 6. e5 {[%clk 0:03:01]}  Qe7 {[%clk 0:02:56]} 7. Qe2 {[%clk 0:03:01]}  Nd5 {[%clk 0:02:57]} 8. h4 {[%clk 0:03:02]}  f6 {[%clk 0:02:31]} 9. c4 {[%clk 0:02:59]}  Ba6 {[%clk 0:02:31]} 10. Rh3 {[%clk 0:02:58]}  fxe5 {[%clk 0:02:23]} 11. Ra3 {[%clk 0:02:44]}  Nb4 {[%clk 0:02:17]} 12. Bg5 {[%clk 0:02:20]}  Qe6 {[%clk 0:02:13]} 13. Rc3 {[%clk 0:01:42]}  c5 {[%clk 0:02:04]} 14. Qf3 {[%clk 0:01:30]}  Nc6 {[%clk 0:02:03]} 15. Na3 {[%clk 0:01:25]}  Rb8 {[%clk 0:02:03]} 16. O-O-O {[%clk 0:01:20]}  Nd4 {[%clk 0:02:01]} 17. Qe4 {[%clk 0:01:12]}  Bb7 {[%clk 0:01:55]} 18. Qe1 {[%clk 0:01:04]}  Bd6 {[%clk 0:01:54]} 19. Nb5 {[%clk 0:00:46]}  a6 {[%clk 0:01:55]} 20. Nxd6+ {[%clk 0:00:46]}  cxd6 {[%clk 0:01:55]} 21. f3 {[%clk 0:00:42]}  O-O {[%clk 0:01:45]} 22. Bd3 {[%clk 0:00:42]}  Bc6 {[%clk 0:01:45]} 23. h5 {[%clk 0:00:39]}  a5 {[%clk 0:01:32]} 24. Qh4 {[%clk 0:00:37]}  a4 {[%clk 0:01:31]} 25. h6 {[%clk 0:00:33]}  g6 {[%clk 0:01:31]} 26. Kb1 {[%clk 0:00:20]}  d5 {[%clk 0:01:16]} 27. Rdc1 {[%clk 0:00:18]}  d6 {[%clk 0:01:15]} 28. Bd2 {[%clk 0:00:16]}  dxc4 {[%clk 0:01:09]} 29. Bxc4 {[%clk 0:00:16]}  Bd5 {[%clk 0:01:10]} 30. Qg5 {[%clk 0:00:12]}  Bxc4 {[%clk 0:01:07]} 31. Rxc4 {[%clk 0:00:13]}  a3 {[%clk 0:01:08]} 32. b3 {[%clk 0:00:13]}  e4 {[%clk 0:00:51]} 33. Qe3 {[%clk 0:00:11]}  Rfe8 {[%clk 0:00:47]} 34. fxe4 {[%clk 0:00:10]}  Qxe4+ {[%clk 0:00:48]} 35. Qxe4 {[%clk 0:00:10]}  Rxe4 {[%clk 0:00:49]} 36. Ra4 {[%clk 0:00:09]}  Re2 {[%clk 0:00:48]} 37. Bc3 {[%clk 0:00:08]}  Nb5 {[%clk 0:00:44]} 38. Ba1 {[%clk 0:00:05]}  Rxg2 {[%clk 0:00:38]} 39. Re4 {[%clk 0:00:05]}  Rf2 {[%clk 0:00:35]} 40. Rce1 {[%clk 0:00:04]}  Rbf8 {[%clk 0:00:34]} 41. Re7 {[%clk 0:00:04]}  R2f7 {[%clk 0:00:34]} 42. R7e6 {[%clk 0:00:04]}  Rf1 {[%clk 0:00:32]} 43. Kc2 {[%clk 0:00:02]}  Rxe1 {[%clk 0:00:31]} 44. Rxe1 {[%clk 0:00:03]}  Kf7 {[%clk 0:00:24]} 45. Bg7 {[%clk 0:00:02]}  Re8 {[%clk 0:00:23]} 46. Rf1+ {[%clk 0:00:03]}  Ke6 {[%clk 0:00:24]} 47. Kd3 {[%clk 0:00:03]}  Kd5 {[%clk 0:00:21]} 48. Rf7 {[%clk 0:00:03]}  Ke6 {[%clk 0:00:12]} 49. Rb7 {[%clk 0:00:02]}  Nd4 {[%clk 0:00:08]} 50. Ra7 {[%clk 0:00:02]}  Nc6 {[%clk 0:00:08]} 51. Rxa3 {[%clk 0:00:01]}  Kd5 {[%clk 0:00:07]} 0-1


[Site "https://www.chess.com"]

[Event "Titled Tuesday Blitz February 07 Early 2023"]
[White "Fier, Alexandr"]
[Black "Podetti, Davide"]
[WhiteFideId "2107139"]
[BlackFideId "893617"]
[WhiteElo "2589"]
[BlackElo "2281"]
[Result "1-0"]
[Round "08"]
[TimeControl "180+2"]
[Date "2023.02.07"]
[WhiteClock "0:02:30"]
[BlackClock "0:00:42"]

1. d4 {[%clk 0:03:00]}  Nf6 {[%clk 0:02:59]} 2. Bg5 {[%clk 0:03:01]}  e6 {[%clk 0:02:57]} 3. e4 {[%clk 0:03:01]}  h6 {[%clk 0:02:58]} 4. Bxf6 {[%clk 0:03:02]}  Qxf6 {[%clk 0:02:58]} 5. c3 {[%clk 0:03:03]}  d6 {[%clk 0:02:55]} 6. Bd3 {[%clk 0:03:03]}  g6 {[%clk 0:02:55]} 7. Ne2 {[%clk 0:03:03]}  Bg7 {[%clk 0:02:56]} 8. O-O {[%clk 0:03:04]}  Qe7 {[%clk 0:02:56]} 9. f4 {[%clk 0:03:04]}  f5 {[%clk 0:02:47]} 10. e5 {[%clk 0:03:03]}  O-O {[%clk 0:02:46]} 11. Nd2 {[%clk 0:03:03]}  c5 {[%clk 0:02:42]} 12. Nf3 {[%clk 0:03:03]}  Nc6 {[%clk 0:02:40]} 13. h3 {[%clk 0:03:02]}  Bd7 {[%clk 0:02:30]} 14. Qe1 {[%clk 0:02:58]}  Rad8 {[%clk 0:02:26]} 15. Rd1 {[%clk 0:02:57]}  Bc8 {[%clk 0:02:17]} 16. Kh2 {[%clk 0:02:55]}  dxe5 {[%clk 0:02:06]} 17. dxe5 {[%clk 0:02:54]}  g5 {[%clk 0:02:03]} 18. Qg3 {[%clk 0:02:50]}  gxf4 {[%clk 0:01:52]} 19. Nxf4 {[%clk 0:02:51]}  Rf7 {[%clk 0:01:30]} 20. Bb5 {[%clk 0:02:39]}  Rxd1 {[%clk 0:01:14]} 21. Rxd1 {[%clk 0:02:40]}  Qc7 {[%clk 0:01:14]} 22. Bxc6 {[%clk 0:02:38]}  Qxc6 {[%clk 0:01:09]} 23. Nh5 {[%clk 0:02:38]}  Bd7 {[%clk 0:00:57]} 24. Qg6 {[%clk 0:02:34]}  f4 {[%clk 0:00:42]} 25. Nf6+ {[%clk 0:02:30]}  Kf8 {[%clk 0:00:42]} 26. Rxd7 {[%clk 0:02:30]} 1-0


[Site "https://www.chess.com"]

[Event "Titled Tuesday Blitz February 07 Early 2023"]
[White "Iniyan, P"]
[Black "Gjestemoen-VonHirsch, Andre"]
[WhiteFideId "25002767"]
[BlackFideId "1539531"]
[WhiteElo "2525"]
[BlackElo "2314"]
[Result "0-1"]
[Round "08"]
[TimeControl "180+2"]
[Date "2023.02.07"]
[WhiteClock "0:00:22"]
[BlackClock "0:00:52"]

1. Nf3 {[%clk 0:03:00]}  Nf6 {[%clk 0:02:59]} 2. g3 {[%clk 0:03:01]}  g6 {[%clk 0:02:58]} 3. Bg2 {[%clk 0:03:02]}  Bg7 {[%clk 0:02:59]} 4. O-O {[%clk 0:03:02]}  O-O {[%clk 0:03:00]} 5. d3 {[%clk 0:03:03]}  d5 {[%clk 0:02:57]} 6. c3 {[%clk 0:03:02]}  c6 {[%clk 0:02:55]} 7. Nbd2 {[%clk 0:03:00]}  Re8 {[%clk 0:02:50]} 8. e4 {[%clk 0:03:00]}  e5 {[%clk 0:02:48]} 9. Re1 {[%clk 0:02:59]}  Qc7 {[%clk 0:02:43]} 10. Qc2 {[%clk 0:02:49]}  a5 {[%clk 0:02:40]} 11. a3 {[%clk 0:02:47]}  a4 {[%clk 0:02:34]} 12. Nf1 {[%clk 0:02:35]}  Nbd7 {[%clk 0:02:32]} 13. Bg5 {[%clk 0:02:34]}  h6 {[%clk 0:02:29]} 14. Bxf6 {[%clk 0:02:33]}  Nxf6 {[%clk 0:02:29]} 15. Rad1 {[%clk 0:02:31]}  dxe4 {[%clk 0:02:23]} 16. dxe4 {[%clk 0:02:32]}  Be6 {[%clk 0:02:23]} 17. N3d2 {[%clk 0:02:22]}  Bf8 {[%clk 0:02:23]} 18. Ne3 {[%clk 0:02:17]}  Bc5 {[%clk 0:02:10]} 19. h3 {[%clk 0:02:17]}  Red8 {[%clk 0:02:07]} 20. Kh2 {[%clk 0:02:16]}  Rd7 {[%clk 0:02:01]} 21. Ndc4 {[%clk 0:02:14]}  Rad8 {[%clk 0:02:01]} 22. Rxd7 {[%clk 0:02:12]}  Rxd7 {[%clk 0:01:57]} 23. Qxa4 {[%clk 0:02:03]}  b5 {[%clk 0:01:56]} 24. Qa8+ {[%clk 0:02:03]}  Rd8 {[%clk 0:01:54]} 25. Qa5 {[%clk 0:02:03]}  Bd6 {[%clk 0:01:21]} 26. Nb6 {[%clk 0:01:49]}  Bc5 {[%clk 0:01:15]} 27. Nbc4 {[%clk 0:01:46]}  Bd6 {[%clk 0:01:15]} 28. Nb6 {[%clk 0:01:46]}  Rb8 {[%clk 0:01:10]} 29. Rd1 {[%clk 0:01:44]}  Ne8 {[%clk 0:01:05]} 30. c4 {[%clk 0:01:15]}  Qxb6 {[%clk 0:00:57]} 31. Qxb6 {[%clk 0:00:58]}  Rxb6 {[%clk 0:00:58]} 32. Rxd6 {[%clk 0:00:59]}  Nxd6 {[%clk 0:00:55]} 33. c5 {[%clk 0:01:00]}  Rb8 {[%clk 0:00:55]} 34. cxd6 {[%clk 0:01:00]}  Rd8 {[%clk 0:00:56]} 35. f4 {[%clk 0:00:54]}  exf4 {[%clk 0:00:56]} 36. gxf4 {[%clk 0:00:53]}  Rxd6 {[%clk 0:00:57]} 37. Kg3 {[%clk 0:00:41]}  Rd2 {[%clk 0:00:56]} 38. f5 {[%clk 0:00:40]}  gxf5 {[%clk 0:00:53]} 39. exf5 {[%clk 0:00:40]}  Bd5 {[%clk 0:00:53]} 40. Bxd5 {[%clk 0:00:32]}  cxd5 {[%clk 0:00:54]} 41. b4 {[%clk 0:00:27]}  d4 {[%clk 0:00:53]} 42. Nd5 {[%clk 0:00:27]}  Rd3+ {[%clk 0:00:52]} 43. Kf4 {[%clk 0:00:22]}  Rxh3 {[%clk 0:00:51]} 44. Ke4 {[%clk 0:00:22]}  d3 {[%clk 0:00:52]} 0-1


[Site "https://www.chess.com"]

[Event "Titled Tuesday Blitz February 07 Early 2023"]
[White "Lorenzo De La Riva, Lazaro"]
[Black "Indjic, Aleksandar"]
[WhiteFideId "2268809"]
[BlackFideId "911925"]
[WhiteElo "2404"]
[BlackElo "2618"]
[Result "0-1"]
[Round "08"]
[TimeControl "180+2"]
[Date "2023.02.07"]
[WhiteClock "0:00:17"]
[BlackClock "0:00:39"]

1. d4 {[%clk 0:02:59]}  Nf6 {[%clk 0:02:59]} 2. c4 {[%clk 0:02:59]}  e6 {[%clk 0:03:00]} 3. Nc3 {[%clk 0:02:58]}  Bb4 {[%clk 0:02:59]} 4. e3 {[%clk 0:02:59]}  O-O {[%clk 0:02:58]} 5. Bd2 {[%clk 0:02:58]}  b6 {[%clk 0:02:57]} 6. Nf3 {[%clk 0:02:56]}  Bb7 {[%clk 0:02:56]} 7. Bd3 {[%clk 0:02:53]}  d6 {[%clk 0:02:56]} 8. O-O {[%clk 0:02:46]}  Nbd7 {[%clk 0:02:55]} 9. a3 {[%clk 0:02:43]}  Bxc3 {[%clk 0:02:54]} 10. Bxc3 {[%clk 0:02:44]}  Ne4 {[%clk 0:02:54]} 11. Be1 {[%clk 0:02:41]}  f5 {[%clk 0:02:54]} 12. Nd2 {[%clk 0:02:40]}  Qe7 {[%clk 0:02:50]} 13. f3 {[%clk 0:02:38]}  Nxd2 {[%clk 0:02:49]} 14. Qxd2 {[%clk 0:02:38]}  e5 {[%clk 0:02:50]} 15. Bc2 {[%clk 0:02:32]}  a5 {[%clk 0:02:47]} 16. b3 {[%clk 0:02:31]}  Rae8 {[%clk 0:02:38]} 17. Bf2 {[%clk 0:02:29]}  e4 {[%clk 0:02:34]} 18. f4 {[%clk 0:02:27]}  d5 {[%clk 0:02:32]} 19. Rfc1 {[%clk 0:02:21]}  Ra8 {[%clk 0:02:29]} 20. Bd1 {[%clk 0:02:19]}  h6 {[%clk 0:02:28]} 21. Be2 {[%clk 0:02:17]}  g5 {[%clk 0:02:19]} 22. Bg3 {[%clk 0:02:14]}  Nf6 {[%clk 0:02:16]} 23. c5 {[%clk 0:02:03]}  Rf7 {[%clk 0:01:58]} 24. Rc2 {[%clk 0:01:59]}  Ba6 {[%clk 0:01:53]} 25. Bxa6 {[%clk 0:01:54]}  Rxa6 {[%clk 0:01:54]} 26. cxb6 {[%clk 0:01:53]}  Rxb6 {[%clk 0:01:54]} 27. fxg5 {[%clk 0:01:52]}  hxg5 {[%clk 0:01:53]} 28. Rxc7 {[%clk 0:01:40]}  Qe6 {[%clk 0:01:53]} 29. Rxf7 {[%clk 0:01:39]}  Kxf7 {[%clk 0:01:53]} 30. b4 {[%clk 0:01:38]}  axb4 {[%clk 0:01:50]} 31. axb4 {[%clk 0:01:37]}  Kg6 {[%clk 0:01:48]} 32. Be5 {[%clk 0:01:36]}  Ng4 {[%clk 0:01:48]} 33. Bg3 {[%clk 0:01:26]}  Qe7 {[%clk 0:01:46]} 34. h3 {[%clk 0:01:24]}  Nf6 {[%clk 0:01:45]} 35. Be5 {[%clk 0:01:24]}  Nd7 {[%clk 0:01:36]} 36. Ra7 {[%clk 0:01:16]}  Qe6 {[%clk 0:01:36]} 37. Qc2 {[%clk 0:01:07]}  Nxe5 {[%clk 0:01:33]} 38. dxe5 {[%clk 0:01:08]}  Rc6 {[%clk 0:01:29]} 39. Qb2 {[%clk 0:01:08]}  f4 {[%clk 0:01:29]} 40. exf4 {[%clk 0:01:07]}  gxf4 {[%clk 0:01:30]} 41. Qf2 {[%clk 0:01:06]}  Rc1+ {[%clk 0:01:26]} 42. Kh2 {[%clk 0:01:04]}  Qxe5 {[%clk 0:01:26]} 43. Ra6+ {[%clk 0:00:57]}  Kh5 {[%clk 0:01:24]} 44. Qd2 {[%clk 0:00:48]}  Rb1 {[%clk 0:00:55]} 45. Ra2 {[%clk 0:00:20]}  e3 {[%clk 0:00:49]} 46. Qd3 {[%clk 0:00:19]}  f3+ {[%clk 0:00:49]} 47. g3 {[%clk 0:00:19]}  Rb2+ {[%clk 0:00:48]} 48. Kh1 {[%clk 0:00:18]}  Qe4 {[%clk 0:00:40]} 49. Qxe4 {[%clk 0:00:18]}  dxe4 {[%clk 0:00:40]} 50. Rxb2 {[%clk 0:00:19]}  e2 {[%clk 0:00:40]} 51. Rb1 {[%clk 0:00:17]}  f2 {[%clk 0:00:39]} 52. Kg2 {[%clk 0:00:17]}  e1=Q {[%clk 0:00:39]} 0-1


[Site "https://www.chess.com"]

[Event "Titled Tuesday Blitz February 07 Early 2023"]
[White "Bok, Benjamin"]
[Black "Vlassov, Nikolai"]
[WhiteFideId "1017063"]
[BlackFideId "4103360"]
[WhiteElo "2607"]
[BlackElo "2283"]
[Result "1-0"]
[Round "08"]
[TimeControl "180+2"]
[Date "2023.02.07"]
[WhiteClock "0:00:30"]
[BlackClock "0:00:15"]

1. d4 {[%clk 0:02:09]}  Nf6 {[%clk 0:02:59]} 2. c4 {[%clk 0:02:07]}  Nc6 {[%clk 0:02:58]} 3. Nf3 {[%clk 0:02:07]}  e6 {[%clk 0:02:58]} 4. Nc3 {[%clk 0:02:07]}  Bb4 {[%clk 0:02:58]} 5. Bd2 {[%clk 0:02:08]}  O-O {[%clk 0:02:57]} 6. Qc2 {[%clk 0:02:08]}  d6 {[%clk 0:02:57]} 7. a3 {[%clk 0:02:07]}  Bxc3 {[%clk 0:02:57]} 8. Bxc3 {[%clk 0:02:08]}  Qe7 {[%clk 0:02:51]} 9. e3 {[%clk 0:02:08]}  e5 {[%clk 0:02:49]} 10. dxe5 {[%clk 0:02:08]}  dxe5 {[%clk 0:02:49]} 11. h3 {[%clk 0:02:07]}  Rd8 {[%clk 0:02:41]} 12. Be2 {[%clk 0:02:06]}  e4 {[%clk 0:02:06]} 13. Nd2 {[%clk 0:01:48]}  Bf5 {[%clk 0:02:06]} 14. g4 {[%clk 0:01:47]}  Bg6 {[%clk 0:02:06]} 15. h4 {[%clk 0:01:47]}  h5 {[%clk 0:01:54]} 16. gxh5 {[%clk 0:01:39]}  Nxh5 {[%clk 0:01:45]} 17. Bxh5 {[%clk 0:00:57]}  Bxh5 {[%clk 0:01:43]} 18. Rg1 {[%clk 0:00:57]}  Qxh4 {[%clk 0:00:57]} 19. Qxe4 {[%clk 0:00:51]}  Qxe4 {[%clk 0:00:50]} 20. Rxg7+ {[%clk 0:00:50]}  Kf8 {[%clk 0:00:49]} 21. Nxe4 {[%clk 0:00:51]}  Bg6 {[%clk 0:00:46]} 22. Nc5 {[%clk 0:00:44]}  b6 {[%clk 0:00:39]} 23. Ne6+ {[%clk 0:00:40]}  fxe6 {[%clk 0:00:39]} 24. Rxg6 {[%clk 0:00:41]}  Rd6 {[%clk 0:00:32]} 25. Ke2 {[%clk 0:00:39]}  e5 {[%clk 0:00:30]} 26. Rg5 {[%clk 0:00:37]}  Re8 {[%clk 0:00:28]} 27. Rh1 {[%clk 0:00:37]}  Nd4+ {[%clk 0:00:25]} 28. Bxd4 {[%clk 0:00:34]}  exd4 {[%clk 0:00:25]} 29. Rh8+ {[%clk 0:00:34]}  Kf7 {[%clk 0:00:23]} 30. Rxe8 {[%clk 0:00:30]}  Kxe8 {[%clk 0:00:23]} 31. Rd5 {[%clk 0:00:30]}  Rxd5 {[%clk 0:00:14]} 32. cxd5 {[%clk 0:00:30]}  dxe3 {[%clk 0:00:15]} 33. Kxe3 {[%clk 0:00:30]}  Kd7 {[%clk 0:00:15]} 34. Ke4 {[%clk 0:00:30]} 1-0


[Site "https://www.chess.com"]